bitfinex/quotes_ETHUSD_20251215
["timestamp","ask_amount","ask_price","bid_price","bid_amount"]
[1765834789547,1.5409,2950.9,2950.8,0.002]
[1765834790044,0.8763,2950.9,2950.8,0.002]
[1765834791724,4.92669663,2950.9,2950.8,0.002]
[1765834791923,1.5379,2950.9,2950.8,0.002]
[1765834793141,4.92669663,2950.9,2950.8,0.002]
[1765834793847,5.75822491,2950.9,2950.8,0.002]
[1765834794448,2.36942828,2950.9,2950.8,0.002]
[1765834794649,1.5379,2950.9,2950.8,0.002]
[1765834794952,1.0642,2950.9,2950.8,0.002]
[1765834795150,1.5379,2950.9,2950.8,0.002]
[1765834795374,0.8763,2950.9,2950.8,0.002]
[1765834796437,0.8763,2950.9,2950.8,0.4861]
[1765834796438,0.541,2950.9,2950.8,0.4861]
[1765834796622,0.8777,2950.9,2950.8,0.002]
[1765834798249,1.5408,2950.9,2950.8,0.002]
[1765834801568,4.92959663,2950.9,2950.8,0.002]
[1765834801734,5.76141568,2950.9,2950.8,0.002]
[1765834802137,5.81141568,2950.9,2950.8,0.002]
[1765834802636,5.81141568,2950.9,2950.1,0.002]
[1765834802637,0.05,2950.6,2950.1,0.002]
[1765834802839,0.3566,2950.2,2950.1,0.002]
[1765834803265,0.8093,2950.2,2950.1,0.002]
[1765834803644,4.1989007,2950.2,2950.1,0.002]
[1765834803843,4.61879077,2950.2,2950.1,0.002]
[1765834804760,1.22919007,2950.2,2950.1,0.002]
[1765834804958,0.8093,2950.2,2950.1,0.002]
[1765834805349,0.3566,2950.2,2950.1,0.002]
[1765834805647,1.3493,2950.2,2950.1,0.002]
[1765834807044,4.7389007,2950.2,2950.1,0.002]
[1765834807779,1.3493,2950.2,2950.1,0.002]
[1765834808272,2.1671261,2950.2,2950.1,0.002]
[1765834808775,5.5567268,2950.2,2950.1,0.002]
[1765834808971,2.1671261,2950.2,2950.1,0.002]
[1765834809176,5.5567268,2950.2,2950.1,0.002]
[1765834810479,2.1671261,2950.2,2950.1,0.002]
[1765834810648,5.9622308,2950.2,2950.1,0.002]
[1765834810849,5.9622308,2950.2,2949.5,0.002]
[1765834810850,0.05,2949.7,2949.5,0.002]
[1765834811076,0.05,2949.7,2948.4,3.39362274]
[1765834811077,0.05,2949.4,2948.4,3.39362274]
[1765834811281,0.0035,2949.1,2948.4,0.002]
[1765834811472,0.5935,2949.1,2948.4,0.002]
[1765834811652,4.437965,2949.1,2948.4,0.002]
[1765834811853,5.22083703,2949.1,2948.4,0.002]
[1765834812687,1.23997203,2949.1,2948.4,0.002]
[1765834812889,4.387965,2949.1,2948.4,0.002]
[1765834814119,0.05,2948.5,2948.4,0.002]
[1765834814264,0.7827,2948.5,2948.3,0.002]
[1765834814578,0.7971,2948.4,2948.3,0.002]
[1765834814780,1.01242753,2948.4,2948.3,0.002]
[1765834815880,4.40409758,2948.4,2948.3,0.002]
[1765834816553,0.7971,2948.4,2948.3,0.002]
[1765834816759,1.3371,2948.4,2948.3,0.002]
[1765834819869,4.72877005,2948.4,2948.3,0.002]
[1765834821101,4.77877005,2948.4,2948.3,0.002]
[1765834822668,1.3871,2948.4,2948.3,0.002]
[1765834822993,1.3371,2948.4,2948.3,0.002]
[1765834823991,4.72877005,2948.4,2948.3,0.002]
[1765834824883,3.93167005,2948.4,2948.3,0.002]
[1765834825082,4.28207005,2948.4,2948.3,0.002]
[1765834825289,4.73467005,2948.4,2948.3,0.002]
[1765834825499,5.57085368,2948.4,2948.3,0.002]
[1765834826793,6.15132897,2948.4,2948.3,0.002]
[1765834828001,6.55683297,2948.4,2948.3,0.002]
[1765834828798,6.55683297,2948.4,2947.8,0.002]
[1765834828799,3.39224532,2947.9,2947.8,0.002]
[1765834828981,4.12244532,2947.9,2947.8,0.002]
[1765834829169,5.33249422,2947.9,2947.8,0.002]
[1765834833387,5.73799822,2947.9,2947.8,0.002]
[1765834834498,0.05,2947.3,2947.2,0.002]
[1765834834801,1.0845,2947.3,2947.2,0.002]
[1765834835099,4.4774359,2947.3,2947.2,0.002]
[1765834835273,5.30501298,2947.3,2947.2,0.002]
[1765834835476,0.98597929,2947.2,2947.1,0.002]
[1765834835775,1.78607929,2947.2,2947.1,0.002]
[1765834836204,0.3091,2947.2,2947.1,0.002]
[1765834836377,0.54,2947.3,2947.1,0.4775]
[1765834836577,0.54,2947.3,2947.1,0.002]
[1765834836578,0.8018,2947.2,2947.1,0.002]
[1765834836809,0.3126,2947.2,2947.1,0.002]
[1765834838182,1.27526525,2947.2,2947.1,0.002]
[1765834839798,0.8018,2947.2,2947.1,0.002]
[1765834840398,0.3126,2947.2,2947.1,0.002]
[1765834841015,0.8018,2947.2,2947.1,0.002]
[1765834843805,0.3126,2947.2,2947.1,0.002]
[1765834844011,0.54,2947.3,2947.1,0.002]
[1765834844817,0.54,2947.3,2947.2,0.4755]
[1765834844987,0.54,2947.3,2947.1,0.002]
[1765834845193,0.3126,2947.2,2947.1,0.002]
[1765834849721,0.4892,2947.5,2947.1,0.4775]
[1765834849893,0.54,2947.2,2947.1,0.4775]
[1765834850522,0.8543,2947.2,2947.1,0.002]
[1765834851316,0.8553,2947.2,2947.1,0.002]
[1765834853327,1.3428,2947.2,2947.1,0.002]
[1765834853702,0.8553,2947.2,2947.1,0.002]
[1765834854422,0.541,2947.2,2947.1,0.4775]
[1765834855231,0.8571,2947.2,2947.1,0.002]
[1765834855601,1.3429,2947.2,2947.1,0.002]
[1765834856231,4.73595103,2947.2,2947.1,0.002]
[1765834856442,5.20953595,2947.2,2947.1,0.002]
[1765834858629,11.53953595,2947.2,2947.1,0.002]
[1765834859432,12.52551524,2947.2,2947.1,0.002]
[1765834859609,13.02241677,2947.2,2947.1,0.002]
[1765834859925,0.5505,2946.7,2946.4,0.002]
[1765834860133,0.003,2946.5,2946.4,0.002]
[1765834860522,0.494,2946.5,2946.4,0.002]
[1765834861506,0.05,2946.3,2946.0,0.002]
[1765834861708,0.3013,2946.1,2946.0,0.002]
[1765834862030,0.7595,2946.1,2946.0,0.002]
[1765834866253,4.15381791,2946.1,2946.0,0.002]
[1765834866539,0.7595,2946.1,2946.0,0.002]
[1765834868009,0.3013,2946.1,2946.0,0.002]
[1765834868240,0.8767,2946.1,2946.0,0.002]
[1765834868436,4.72801791,2946.1,2946.0,0.002]
[1765834868640,5.8388197,2946.1,2946.0,0.002]
[1765834870318,2.44450179,2946.1,2946.0,0.002]
[1765834871253,5.8388197,2946.1,2946.0,0.002]
[1765834876957,1.98750179,2946.1,2946.0,0.002]
[1765834877158,0.541,2946.4,2946.0,0.9086]
[1765834877339,0.541,2946.4,2946.1,0.1076]
[1765834877538,0.541,2946.4,2946.3,0.4561]
[1765834877734,0.541,2946.4,2946.1,0.5581]
[1765834878049,0.541,2946.4,2946.3,0.4561]
[1765834878244,0.001,2946.4,2946.3,0.4561]
[1765834878565,0.001,2946.4,2946.3,0.9066]
[1765834878864,0.001,2946.4,2946.3,1.4647]
[1765834879264,0.001,2946.4,2946.3,4.85878749]
[1765834879637,0.001,2946.4,2946.3,4.40828749]
[1765834881559,0.7995,2946.4,2946.3,0.5581]
[1765834881859,0.7995,2946.4,2946.0,0.002]
[1765834881860,7.5874446,2946.4,2946.0,0.002]
[1765834882062,0.3414,2946.1,2946.0,0.002]
[1765834882264,0.8814,2946.1,2946.0,0.002]
[1765834882562,1.3385,2946.1,2946.0,0.002]
[1765834885064,4.73281791,2946.1,2946.0,0.002]
[1765834887062,4.73281791,2946.1,2945.5,0.002]
[1765834887063,0.05,2945.7,2945.5,0.002]
[1765834887359,1.0671,2945.6,2945.5,0.002]
[1765834887533,1.5241,2945.6,2945.5,0.002]
[1765834888662,0.58047529,2945.5,2945.2,0.002]
[1765834888959,1.04327529,2945.5,2945.2,0.002]
[1765834889184,0.05,2945.3,2945.2,0.002]
[1765834889363,0.05,2945.3,2945.0,0.002]
[1765834889364,0.58047529,2945.2,2945.0,0.002]
[1765834889539,0.5478,2945.1,2945.0,0.002]
[1765834889737,1.006,2945.1,2945.0,0.002]
[1765834891443,4.98194573,2945.1,2945.0,0.002]
[1765834891644,6.5584448,2945.1,2945.0,0.002]
[1765834892364,1.57649907,2945.1,2945.0,0.002]
[1765834892552,1.3324,2945.1,2945.0,0.002]
[1765834893557,5.30834573,2945.1,2945.0,0.002]
[1765834893962,1.3324,2945.1,2945.0,0.002]
[1765834894156,0.3081,2945.1,2945.0,0.002]
[1765834894361,0.8481,2945.1,2945.0,0.002]
[1765834894944,0.54,2945.1,2945.0,0.4808]
[1765834895457,0.54,2945.1,2945.0,3.87638573]
[1765834895657,0.54,2945.1,2945.0,4.60379351]
[1765834896049,0.8481,2945.1,2945.0,4.60379351]
[1765834896250,0.8481,2945.1,2945.0,3.87638573]
[1765834896756,0.54,2945.1,2945.0,3.87638573]
[1765834899946,0.8481,2945.1,2945.0,0.002]
[1765834900274,0.8481,2945.1,2945.0,3.39758573]
[1765834900777,0.54,2945.1,2945.0,3.87638573]
[1765834901579,0.54,2945.1,2945.0,5.18007328]
[1765834901952,0.54,2945.1,2945.0,5.72007328]
[1765834902280,1.0289,2945.1,2945.0,3.39758573]
[1765834902668,1.0289,2945.1,2945.0,0.002]
[1765834902856,1.3342,2945.1,2945.0,3.39758573]
[1765834903252,1.3342,2945.1,2945.0,0.002]
[1765834903458,0.54,2945.1,2945.0,3.39758573]
[1765834903866,0.54,2945.1,2945.0,5.0307243]
[1765834904205,0.54,2945.4,2945.0,8.42631003]
[1765834904490,0.1916,2946.0,2945.1,0.6747]
[1765834904779,0.4861,2946.3,2945.6,0.4788]
[1765834904954,1.0261,2946.2,2945.2,0.4748]
[1765834905155,1.0261,2946.2,2945.3,0.22758213]
[1765834905352,0.4861,2946.1,2945.3,1.2481899]
[1765834906480,0.4861,2946.1,2945.4,6.7902492]
[1765834907483,0.4861,2946.1,2945.4,7.2650492]
[1765834907682,0.4861,2946.1,2945.5,1.19084334]
[1765834908183,0.54,2946.2,2945.5,1.66564334]
[1765834908358,1.0261,2946.2,2945.6,6.78978814]
[1765834909583,1.0261,2946.2,2945.6,3.39489407]
[1765834909584,0.6805,2945.7,2945.6,3.39489407]
[1765834909756,1.2205,2945.7,2945.6,3.39489407]
[1765834909952,1.5257,2945.7,2945.6,3.39489407]
[1765834910152,0.54,2945.7,2945.6,4.65474517]
[1765834911186,0.848,2945.7,2945.6,3.39489407]
[1765834913983,0.54,2945.7,2945.6,3.39489407]
[1765834914575,0.54,2945.7,2945.6,4.38244301]
[1765834914775,0.54,2945.7,2945.6,3.87369407]
[1765834914961,0.54,2945.7,2945.6,4.41369407]
[1765834917676,0.848,2945.7,2945.6,3.93489407]
[1765834917871,0.541,2945.7,2945.6,4.41369407]
[1765834920391,0.849,2945.7,2945.6,3.93489407]
[1765834920594,0.849,2945.7,2945.6,3.39489407]
[1765834920792,0.541,2945.7,2945.6,3.39489407]
[1765834920970,0.541,2945.7,2945.6,3.87369407]
[1765834921699,0.849,2945.7,2945.6,3.39489407]
[1765834921998,1.3333,2945.7,2945.6,3.39489407]
[1765834923097,0.849,2945.7,2945.6,3.39489407]
[1765834923478,0.849,2945.7,2945.3,0.58047529]
[1765834923671,0.541,2945.7,2945.4,1.02061124]
[1765834924568,0.001,2945.7,2945.6,0.4761]
[1765834924768,0.001,2945.7,2945.6,8.70794121]
[1765834925109,0.001,2945.7,2945.6,15.46060313]
[1765834925415,0.001,2945.7,2945.6,17.14270837]
[1765834925568,0.001,2945.7,2945.6,20.53760244]
[1765834925768,0.001,2945.7,2945.6,13.78494052]
[1765834926898,0.001,2946.1,2945.7,0.98597929]
[1765834927205,0.001,2946.1,2946.0,7.80923721]
[1765834927382,0.001,2946.1,2946.0,8.59016093]
[1765834927581,0.001,2946.1,2946.0,12.47779405]
[1765834928998,0.001,2946.1,2946.0,12.47303527]
[1765834929196,0.001,2946.1,2946.0,13.01403527]
[1765834929390,0.001,2946.1,2946.0,6.26613213]
[1765834929791,0.001,2946.1,2946.0,3.93543312]
[1765834930003,0.7785,2946.1,2946.0,3.39443312]
[1765834930500,0.7785,2946.1,2945.2,3.8884902]
[1765834930708,0.0049,2945.9,2945.3,6.79047974]
[1765834930871,0.0049,2945.9,2945.5,0.7785]
[1765834931074,0.6913,2945.8,2945.5,0.7785]
[1765834931271,0.2824,2945.6,2945.5,0.7785]
[1765834931726,0.2824,2945.6,2945.2,6.7907103]
[1765834931876,0.2824,2945.6,2945.4,0.2824]
[1765834934111,0.2824,2945.6,2945.2,7.2839103]
[1765834937093,0.2824,2945.6,2945.1,3.59734775]
[1765834937094,0.4924,2945.5,2945.1,0.002]
[1765834937303,0.2872,2945.2,2945.1,0.002]
[1765834937684,0.7775,2945.2,2945.1,0.002]
[1765834938089,0.7775,2945.2,2945.1,3.39747044]
[1765834938285,0.2872,2945.2,2945.1,3.39747044]
[1765834939087,0.2872,2945.2,2945.1,0.002]
[1765834939691,0.54,2945.7,2945.1,1.1589]
[1765834939918,0.54,2945.7,2945.4,0.4761]
[1765834940290,0.2872,2945.5,2945.1,0.6828]
[1765834941219,0.541,2945.7,2945.4,0.4761]
[1765834941527,0.541,2945.7,2945.6,0.4761]
[1765834943519,1.3185,2945.7,2945.5,3.39495171]
[1765834943825,1.0313,2945.7,2945.5,3.39495171]
[1765834943993,0.2893,2945.6,2945.5,3.39495171]
[1765834945107,0.541,2945.7,2945.6,3.39489407]
[1765834945441,0.2872,2945.6,2945.5,3.39494851]
[1765834946398,0.2054,2944.8,2943.9,0.002]
[1765834946615,0.2054,2944.8,2943.8,10.372]
[1765834946616,0.05,2944.1,2943.8,0.002]
[1765834946797,0.77107529,2943.9,2943.8,0.002]
[1765834947002,0.05,2943.2,2942.3,0.1876]
[1765834947299,3.93783821,2943.1,2942.2,6.79761532]
[1765834947599,3.93783821,2943.1,2942.2,3.39879811]
[1765834947600,7.828034,2943.1,2942.2,3.39879811]
[1765834947793,0.4924,2943.0,2942.2,3.39879811]
[1765834948197,0.2489,2942.9,2942.2,3.39879811]
[1765834948529,0.2489,2942.9,2942.1,6.98542788]
[1765834949324,0.7413,2942.9,2942.1,6.98542788]
[1765834949496,0.7413,2942.9,2942.1,8.56640354]
[1765834950093,3.64692722,2942.9,2942.1,8.56640354]
[1765834950307,4.13932722,2942.9,2942.1,7.47862788]
[1765834950531,0.4924,2942.8,2942.1,7.47862788]
[1765834951299,0.54,2942.7,2942.1,7.47862788]
[1765834951634,0.187,2943.3,2942.2,1.06347529]
[1765834951813,0.54,2943.2,2942.6,0.4783]
[1765834952197,0.54,2943.2,2942.6,0.9626]
[1765834952530,0.54,2943.2,2942.6,0.4783]
[1765834952731,1.00273524,2943.2,2942.6,0.4783]
[1765834953320,1.00273524,2943.2,2942.7,6.79647942]
[1765834953321,0.54,2943.2,2942.7,6.79647942]
[1765834953521,0.05,2944.2,2943.1,0.6564]
[1765834953722,0.4933,2944.4,2943.2,0.4843]
[1765834953723,0.59,2944.1,2943.2,0.4843]
[1765834954230,1.0833,2944.1,2943.2,0.4843]
[1765834954431,1.0833,2944.1,2942.8,1.06477529]
[1765834954631,0.4933,2944.0,2942.9,1.12594944]
[1765834955039,0.1836,2943.9,2942.9,1.12594944]
[1765834955437,0.4933,2943.8,2943.0,6.7957866]
[1765834955636,0.4933,2943.8,2943.0,10.1936799]
[1765834956038,0.1836,2943.9,2943.1,0.6649]
[1765834956234,0.1836,2943.9,2943.1,1.86335293]
[1765834956935,0.6769,2943.9,2943.1,1.86335293]
[1765834957247,0.6769,2943.9,2943.1,0.6649]
[1765834957933,0.6769,2943.9,2943.2,6.7953248]
[1765834958312,0.1836,2943.9,2943.2,6.7953248]
[1765834958939,0.1836,2943.9,2943.3,0.4843]
[1765834959912,0.1836,2943.9,2943.4,6.79486308]
[1765834960566,0.6769,2943.9,2943.4,6.79486308]
[1765834961044,0.1836,2943.9,2943.4,6.79486308]
[1765834961216,0.1836,2943.9,2943.4,7.27916308]
[1765834963365,0.1836,2943.9,2940.9,2.31435708]
[1765834963366,0.5203,2943.5,2942.6,0.4843]
[1765834963661,0.096,2943.8,2942.5,0.002]
[1765834963662,0.2558,2942.7,2942.5,0.002]
[1765834963865,0.54,2942.6,2942.5,3.40042266]
[1765834964031,0.54,2942.6,2942.5,4.36052266]
[1765834964347,0.54,2942.6,2942.5,3.87622266]
[1765834969022,0.5433,2943.6,2942.5,11.93337435]
[1765834969222,0.541,2943.5,2942.6,0.4843]
[1765834969551,0.541,2943.5,2942.5,6.79889334]
[1765834969752,1.0343,2943.5,2942.5,7.28319334]
[1765834969949,1.0343,2943.5,2942.6,0.4843]
[1765834970163,0.78788053,2943.4,2942.6,0.4843]
[1765834970546,1.28118053,2943.4,2942.6,0.4843]
[1765834970733,0.78788053,2943.4,2942.6,0.4843]
[1765834970933,0.0733,2942.7,2942.5,3.40042266]
[1765834971325,0.4703,2942.6,2942.5,3.40042266]
[1765834971819,0.1836,2942.8,2942.5,3.40042266]
[1765834972330,0.0733,2942.6,2942.5,3.40042266]
[1765834972853,0.6769,2942.8,2942.5,3.40042266]
[1765834973150,0.541,2942.9,2942.5,7.27469334]
[1765834973553,0.541,2942.9,2942.5,3.87622266]
[1765834973855,1.2179,2942.9,2942.5,3.40042266]
[1765834974051,1.68447947,2942.9,2942.5,3.40042266]
[1765834974354,0.0733,2942.6,2942.5,3.40042266]
[1765834974858,0.0733,2942.6,2942.5,0.002]
[1765834978461,0.541,2942.9,2942.5,0.9621]
[1765834978627,0.541,2942.9,2942.7,0.4758]
[1765834979534,0.541,2942.9,2942.8,0.4758]
[1765834979845,0.6143,2942.9,2942.5,0.002]
[1765834980044,0.6143,2942.9,2942.5,0.4863]
[1765834980445,0.6143,2942.9,2942.6,3.39835519]
[1765834980652,0.541,2942.9,2942.6,7.28101038]
[1765834980946,0.541,2942.9,2942.8,0.4758]
[1765834981660,6.33,2943.2,2942.8,0.9601]
[1765834981857,9.20561469,2945.0,2942.8,0.9601]
[1765834981858,0.541,2943.7,2943.1,0.6564]
[1765834982058,0.591,2943.7,2943.1,0.1806]
[1765834982261,0.591,2943.7,2943.2,0.4606]
[1765834982639,0.4684,2943.6,2943.2,6.7953248]
[1765834982839,0.591,2943.7,2943.2,6.7953248]
[1765834983033,0.541,2943.7,2943.2,7.2559248]
[1765834984362,0.541,2943.7,2943.2,6.7953248]
[1765834984563,0.541,2943.7,2943.6,0.4797]
[1765834984784,0.541,2943.7,2943.5,3.39726191]
[1765834985762,0.541,2943.7,2943.5,3.39725516]
[1765834985987,0.0979,2943.6,2943.4,3.39733454]
[1765834986464,0.0046,2943.5,2943.4,3.39733454]
[1765834986666,0.541,2943.7,2943.2,6.7953248]
[1765834986965,0.541,2943.7,2943.4,0.4797]
[1765834987831,0.1015,2943.5,2943.2,6.7953248]
[1765834988031,0.541,2943.7,2943.2,6.7953248]
[1765834988236,0.541,2943.7,2943.6,0.4797]
[1765834988473,0.001,2943.8,2943.6,0.4797]
[1765834988678,0.001,2943.8,2943.7,4.3373853]
[1765834988978,0.001,2943.8,2943.7,3.3970853]
[1765834989183,0.0962,2943.8,2943.7,3.3970853]
[1765834989480,0.0962,2943.8,2943.3,0.4606]
[1765834990144,0.0962,2943.8,2943.7,3.3970853]
[1765834990348,0.001,2943.8,2943.7,3.8767853]
[1765834990577,0.001,2943.8,2943.7,4.3373853]
[1765834991154,0.001,2943.8,2943.7,3.8767853]
[1765834993240,0.5618,2943.8,2943.6,3.39714046]
[1765834993442,0.0047,2943.7,2942.5,0.4626]
[1765834993746,0.6853,2943.6,2942.6,3.39835519]
[1765834994160,0.4665,2943.5,2942.6,3.39835519]
[1765834994463,0.4665,2943.5,2942.6,6.79671038]
[1765834994769,0.05,2943.1,2942.6,6.79671038]
[1765834994941,0.098,2942.7,2942.6,3.39835519]
[1765834995139,0.098,2942.7,2942.5,0.002]
[1765834995473,0.541,2943.0,2942.6,0.9403]
[1765834995677,0.541,2943.4,2942.9,0.4797]
[1765834996136,0.541,2943.4,2942.9,0.9403]
[1765834996337,0.541,2943.4,2943.3,0.6726]
[1765834996867,6.331,2943.8,2943.3,1.1332]
[1765834997057,6.331,2943.8,2943.7,3.8767853]
[1765834997961,0.001,2943.8,2943.7,3.8767853]
[1765835000169,0.001,2943.8,2943.7,4.3373853]
[1765835000667,0.001,2943.8,2943.7,3.8767853]
[1765835000970,0.0962,2943.8,2943.6,3.39714692]
[1765835001167,0.001,2943.8,2943.7,3.3970853]
[1765835001338,0.001,2943.8,2943.7,3.8767853]
[1765835001742,0.001,2943.8,2943.7,3.3970853]
[1765835002469,0.001,2943.8,2943.5,6.79463224]
[1765835002866,0.001,2943.8,2943.7,0.4797]
[1765835003366,0.001,2943.8,2943.7,0.9403]
[1765835003569,0.001,2943.8,2943.7,0.4797]
[1765835005270,0.001,2943.8,2943.7,3.8767853]
[1765835005968,0.001,2943.8,2943.7,4.3373853]
[1765835006173,0.001,2943.8,2943.7,5.1108429]
[1765835007074,0.001,2943.8,2943.7,5.72528904]
[1765835007250,0.001,2943.8,2943.7,5.69131819]
[1765835011490,0.001,2943.8,2943.7,14.88248091]
[1765835011652,0.001,2943.9,2943.7,18.27956621]
[1765835011971,0.001,2943.9,2943.8,6.50124559]
[1765835014780,0.001,2943.9,2943.8,6.90674959]
[1765835015680,0.001,2943.9,2943.8,7.48722488]
[1765835016181,0.001,2943.9,2943.8,7.08172088]
[1765835016481,0.001,2943.9,2943.8,4.91384519]
[1765835017180,0.001,2943.9,2943.8,3.3969699]
[1765835017479,0.0838,2943.9,2943.7,3.39703652]
[1765835017684,0.0046,2943.7,2943.6,3.39911822]
[1765835018181,0.0046,2943.7,2943.6,0.002]
[1765835018571,0.6503,2943.9,2943.6,0.002]
[1765835018880,0.1837,2943.9,2943.6,0.002]
[1765835020361,0.0865,2943.7,2943.6,0.002]
[1765835020548,0.001,2943.9,2943.6,0.002]
[1765835020753,0.001,2943.9,2943.6,0.498]
[1765835022085,0.001,2943.9,2943.6,0.002]
[1765835022888,0.001,2943.9,2943.8,0.496]
[1765835023579,0.001,2943.9,2943.6,0.5017]
[1765835024302,0.001,2943.9,2943.6,0.002]
[1765835024786,0.001,2943.9,2943.8,0.496]
[1765835025161,0.4803,2943.9,2943.6,0.002]
[1765835026876,0.001,2943.9,2943.8,0.496]
[1765835028561,0.001,2943.9,2943.8,3.8929699]
[1765835028958,0.0875,2943.9,2943.8,3.3969699]
[1765835029160,0.7358,2943.9,2943.6,0.002]
[1765835029396,0.0856,2943.7,2943.6,0.002]
[1765835029992,0.0856,2943.7,2943.6,3.39919651]
[1765835030596,0.5502,2943.7,2943.6,0.002]
[1765835030799,3.9972853,2943.7,2943.6,0.002]
[1765835031095,4.80898169,2943.7,2943.6,0.002]
[1765835032593,1.41189639,2943.7,2943.6,0.002]
[1765835033171,0.89729639,2943.7,2943.6,0.002]
[1765835033399,1.36189639,2943.7,2943.6,0.002]
[1765835034903,0.5502,2943.7,2943.6,0.002]
[1765835036501,3.9472853,2943.7,2943.6,0.002]
[1765835038912,0.5502,2943.7,2943.6,0.002]
[1765835039219,3.9472853,2943.7,2943.6,0.002]
[1765835040107,0.5502,2943.7,2943.6,0.002]
[1765835040276,0.0856,2943.7,2943.6,0.498]
[1765835040472,0.0894,2943.7,2943.6,0.002]
[1765835040682,0.5502,2943.7,2943.6,0.002]
[1765835041113,3.9472853,2943.7,2943.6,0.002]
[1765835041408,0.5502,2943.7,2943.6,0.002]
[1765835042216,0.0894,2943.7,2943.6,0.002]
[1765835042619,0.5502,2943.7,2943.6,0.002]
[1765835043192,3.9472853,2943.7,2943.6,0.002]
[1765835043492,0.5502,2943.7,2943.6,0.002]
[1765835044014,3.9472853,2943.7,2943.6,0.002]
[1765835044200,4.7590821,2943.7,2943.6,0.002]
[1765835046123,5.33955739,2943.7,2943.6,0.002]
[1765835046417,0.405504,2943.6,2943.5,0.002]
[1765835046714,0.05,2943.5,2943.4,0.002]
[1765835046879,0.6698,2943.5,2943.4,0.002]
[1765835047084,1.1394,2943.5,2943.4,0.002]
[1765835047697,4.53671612,2943.5,2943.4,0.002]
[1765835054523,4.53771612,2943.5,2943.4,0.002]
[1765835056994,0.6208,2943.5,2943.4,0.002]
[1765835057224,0.541,2943.5,2943.4,0.002]
[1765835057396,1.0912,2943.5,2943.4,0.002]
[1765835058009,0.6254,2943.5,2943.4,0.002]
[1765835058415,0.541,2943.5,2943.4,0.4979]
[1765835058725,0.541,2943.5,2943.4,0.9485]
[1765835059029,0.001,2943.5,2943.4,1.52897529]
[1765835059194,0.001,2943.5,2943.4,2.36168145]
[1765835059627,0.001,2943.5,2943.4,5.75911299]
[1765835060199,0.05,2944.5,2943.4,5.75911299]
[1765835060429,0.001,2944.7,2944.4,0.6759]
[1765835060729,0.001,2944.7,2944.6,7.2600097]
[1765835060931,0.001,2944.7,2944.5,0.74400097]
[1765835061129,0.001,2944.7,2944.6,0.4959]
[1765835061337,0.001,2944.7,2944.6,0.9465]
[1765835061514,0.001,2944.7,2944.6,0.4959]
[1765835061828,0.001,2944.7,2944.6,3.891947]
[1765835062032,0.001,2944.7,2944.6,4.68381765]
[1765835063332,0.001,2944.7,2944.6,0.4959]
[1765835063535,0.001,2944.7,2944.6,3.891947]
[1765835063846,0.001,2944.7,2944.6,4.342547]
[1765835068846,0.001,2944.7,2944.6,3.891947]
[1765835070657,0.001,2944.7,2944.6,4.342547]
[1765835070857,0.001,2944.7,2944.6,6.01276891]
[1765835072338,0.001,2944.7,2944.6,4.387647]
[1765835076066,0.001,2944.7,2944.6,4.96812229]
[1765835076950,0.001,2944.7,2944.6,3.891947]
[1765835077141,0.001,2944.7,2944.6,0.4959]
[1765835077541,0.099,2944.7,2944.3,6.79276168]
[1765835077746,0.099,2944.7,2944.3,7.28846168]
[1765835079346,0.099,2944.7,2944.3,3.89206865]
[1765835079549,0.099,2944.7,2944.3,7.28846168]
[1765835080768,0.099,2944.7,2944.4,0.4957]
[1765835080935,0.0047,2944.4,2943.9,0.58247529]
[1765835081138,0.1489,2944.0,2943.9,0.002]
[1765835081346,0.1489,2944.0,2943.4,0.002]
[1765835081347,0.05,2943.7,2943.4,0.002]
[1765835081571,0.05,2943.7,2942.4,0.002]
[1765835081572,0.05,2943.2,2942.4,0.002]
[1765835081856,3.67372423,2942.8,2942.4,0.002]
[1765835082148,3.67372423,2942.8,2942.4,0.4977]
[1765835082149,0.54,2942.8,2942.4,0.4977]
[1765835082467,0.6283,2942.8,2942.4,0.4977]
[1765835082851,0.6283,2942.8,2942.4,0.002]
[1765835085068,0.6283,2942.8,2942.7,0.4684]
[1765835085069,0.54,2942.8,2942.7,0.4684]
[1765835085368,0.54,2942.8,2942.7,0.9641]
[1765835085564,1.0194,2942.8,2942.7,0.002]
[1765835086475,0.54,2942.8,2942.7,0.002]
[1765835086976,0.6283,2942.8,2942.7,0.002]
[1765835087644,0.54,2942.8,2942.7,0.4684]
[1765835089784,0.54,2942.8,2942.7,0.002]
[1765835090576,0.54,2942.8,2942.7,0.4684]
[1765835091379,0.54,2942.8,2942.7,0.002]
[1765835091581,0.6293,2942.8,2942.7,0.002]
[1765835092300,1.495922,2942.8,2942.7,0.002]
[1765835092499,0.54,2942.8,2942.7,0.4684]
[1765835092791,0.54,2942.8,2942.7,0.9641]
[1765835094085,0.54,2943.0,2942.7,0.9641]
[1765835094452,0.54,2943.0,2942.9,0.4664]
[1765835095702,0.54,2943.0,2942.9,3.86440876]
[1765835096171,0.54,2943.0,2942.9,4.36010876]
[1765835097192,3.44737564,2943.5,2942.9,4.36010876]
[1765835097368,0.54,2943.4,2942.9,4.36010876]